bitfinex-derivatives/quotes_ETHF0:USTF0_20240830
["timestamp","ask_amount","ask_price","bid_price","bid_amount"]
[1725021490956,4.3583,2527.6,2527.2,0.39562]
[1725021491162,0.4015,2527.6,2527.2,0.39562]
[1725021491471,0.00593,2527.6,2527.2,0.39562]
[1725021491658,0.40151,2527.6,2527.2,0.39562]
[1725021491854,0.00593,2527.6,2527.0,4.75593401]
[1725021492060,0.00593,2527.6,2527.5,0.39558]
[1725021492264,0.00593,2527.6,2527.5,4.35238]
[1725021492468,0.00593,2527.6,2527.5,7.56018]
[1725021493560,4.3583,2527.6,2527.5,3.2078]
[1725021493868,0.00593,2527.6,2527.5,3.60338]
[1725021494468,0.00593,2527.6,2527.5,7.56018]
[1725021494767,0.00593,2527.6,2527.5,8.05477388]
[1725021495768,0.00593,2527.6,2527.5,4.09797388]
[1725021496062,0.4015,2527.6,2527.5,3.70239388]
[1725021496266,5.34723,2527.6,2527.5,0.49459388]
[1725021496463,3.96273,2527.6,2527.3,3.2078]
[1725021496659,0.00593,2527.6,2527.5,0.39558]
[1725021496866,0.00593,2527.6,2527.5,0.89020726]
[1725021497072,0.00593,2527.6,2527.5,4.84700726]
[1725021497270,0.00593,2527.6,2527.5,0.49462726]
[1725021497460,0.4015,2527.6,2527.5,0.49462726]
[1725021497855,1.39043,2527.6,2527.5,0.49462726]
[1725021498361,0.00593,2527.6,2527.5,0.89020726]
[1725021498559,0.4015,2527.6,2527.5,0.49462726]
[1725021498970,5.34723,2527.6,2527.5,0.49462726]
[1725021499166,0.39561,2527.3,2527.2,5.53876767]
[1725021499365,0.39561,2527.3,2527.2,9.24124744]
[1725021499967,0.00593,2527.6,2527.3,0.39561]
[1725021500276,0.39559,2527.5,2527.4,0.49467977]
[1725021500763,0.39561,2527.3,2527.2,3.2078]
[1725021501174,5.34145,2527.3,2527.2,3.2078]
[1725021501360,0.39565,2527.1,2527.0,0.00593401]
[1725021501563,4.59257,2527.1,2527.0,2.376e-05]
[1725021501769,18.76281951,2527.1,2527.0,2.376e-05]
[1725021502070,19.75193951,2527.1,2527.0,2.376e-05]
[1725021502568,0.39586,2525.8,2525.6,9.64576767]
[1725021502764,0.39583,2526.0,2525.7,0.49492717]
[1725021502960,0.98937,2526.5,2525.7,0.89078717]
[1725021503162,5.61027453,2526.6,2525.7,6.03369484]
[1725021503461,4.67906854,2526.4,2525.9,0.40175401]
[1725021503661,0.00593401,2526.4,2525.9,0.40175401]
[1725021503861,4.24943037,2526.3,2525.9,0.40175401]
[1725021504067,4.24943037,2526.3,2526.0,0.49489735]
[1725021504264,0.00593401,2526.4,2526.1,5.53876767]
[1725021504572,0.00593401,2526.4,2526.1,10.62196502]
[1725021504770,0.00593401,2526.4,2526.2,0.49489735]
[1725021504965,0.00593401,2526.4,2526.3,0.49489735]
[1725021505168,0.00593401,2526.4,2526.3,6.42943502]
[1725021505367,0.00593401,2526.4,2526.3,9.99206502]
[1725021505963,0.00593401,2526.4,2526.3,10.38783502]
[1725021506965,0.39564,2527.2,2526.4,3.9584]
[1725021507180,3.2078,2527.5,2526.8,0.39569]
[1725021507370,0.39565,2527.1,2526.9,0.49489735]
[1725021507565,0.39564,2527.2,2527.0,0.49489735]
[1725021507764,0.39564,2527.2,2526.4,3.2078]
[1725021507967,0.00593,2527.1,2527.0,3.2078]
[1725021508271,0.00593,2527.1,2527.0,0.49475586]
[1725021508470,8.09014955,2527.1,2526.5,3.2078]
[1725021508675,4.13334955,2527.1,2526.8,0.39569]
[1725021508867,0.00593,2527.1,2527.0,0.39566]
[1725021509069,0.00593,2527.1,2527.0,0.89044332]
[1725021509372,0.00593,2527.1,2527.0,4.84724332]
[1725021509569,0.00593,2527.1,2527.0,0.49478332]
[1725021510174,0.00593,2527.1,2527.0,0.49471935]
[1725021510574,0.40158,2527.1,2527.0,0.49471935]
[1725021510777,0.00593,2527.1,2527.0,0.49471935]
[1725021510975,0.00593,2527.1,2527.0,4.84717935]
[1725021511171,0.00593,2527.1,2527.0,0.89037935]
[1725021511372,3.2078,2527.8,2527.0,19.39847935]
[1725021511578,3.957,2528.4,2527.3,3.2078]
[1725021511579,3.2078,2528.2,2527.3,3.2078]
[1725021511772,3.2078,2528.2,2527.6,3.2078]
[1725021511978,0.3955,2528.1,2527.8,0.39553]
[1725021512181,0.39549,2528.1,2527.8,0.39553]
[1725021512687,0.39549,2528.1,2527.9,0.49456747]
[1725021512877,0.39549,2528.1,2527.8,0.39553]
[1725021513073,0.39549,2528.1,2527.9,0.49454689]
[1725021513280,0.39548,2528.2,2527.9,0.39551]
[1725021513479,0.39548,2528.2,2528.0,0.49454192]
[1725021513679,0.39548,2528.2,2528.1,0.49452194]
[1725021514375,0.39548,2528.2,2527.8,5.93429767]
[1725021514376,0.39552,2527.9,2527.8,5.53876767]
[1725021514772,0.39554,2527.8,2527.7,0.00593401]
[1725021514978,0.39554,2527.8,2527.7,0.5005472]
[1725021515171,4.35154,2527.8,2527.7,0.00593401]
[1725021515373,3.956,2527.8,2527.7,0.00593401]
[1725021515575,0.3955,2528.1,2527.8,0.39552]
[1725021515782,3.957,2528.4,2527.9,0.49456127]
[1725021515975,0.39547,2528.2,2528.0,0.49454561]
[1725021516191,3.957,2528.4,2528.0,0.49454561]
[1725021516384,0.39548,2528.2,2528.0,0.3955]
[1725021516578,0.39551,2528.0,2527.9,3.2078]
[1725021516977,0.39551,2528.0,2527.9,3.70233623]
[1725021517181,4.94564,2528.4,2527.9,3.70233623]
[1725021517386,0.39549,2528.1,2528.0,0.49453623]
[1725021517782,0.39549,2528.1,2527.9,3.2078]
[1725021517783,0.39551,2528.0,2527.9,3.2078]
[1725021518086,1.38428,2528.0,2527.9,3.2078]
[1725021518384,0.39552,2527.9,2527.8,5.53876767]
[1725021518583,0.39552,2527.9,2527.8,6.03334264]
[1725021519784,4.94562,2528.4,2527.8,9.98934264]
[1725021519977,4.94562,2528.4,2528.1,0.39549]
[1725021519978,3.957,2528.4,2528.1,0.39549]
[1725021520185,3.957,2528.4,2528.2,0.49448514]
[1725021520381,0.39546,2528.3,2528.1,0.39549]
[1725021520587,0.39546,2528.3,2528.2,0.49448504]
[1725021521490,0.39546,2528.3,2528.1,0.39549]
[1725021522488,0.39548,2528.2,2528.0,5.93425767]
[1725021522691,0.39547,2528.2,2528.0,5.93426767]
[1725021522891,3.957,2528.4,2528.0,5.53876767]
[1725021522892,0.39549,2528.1,2528.0,5.53876767]
[1725021523089,0.39549,2528.1,2527.7,0.40148401]
[1725021523090,0.39553,2527.9,2527.7,0.40148401]
[1725021523282,0.98869,2528.2,2527.7,0.00593401]
[1725021523487,4.39942578,2528.3,2527.7,0.00593401]
[1725021523488,0.98867,2528.3,2527.7,0.00593401]
[1725021523793,0.39549,2528.2,2527.8,0.4945816]
[1725021523988,3.957,2528.4,2527.9,0.4945816]
[1725021524287,0.39548,2528.2,2528.0,0.8900816]
[1725021524487,0.39548,2528.2,2528.1,0.49450233]
[1725021524691,4.40492274,2528.3,2528.1,0.49450233]
[1725021524999,41.78855,2528.6,2528.2,0.49448864]
[1725021525199,41.78855,2528.6,2528.1,3.60328]
[1725021525200,0.39546,2528.3,2528.1,3.60328]
[1725021525392,0.39546,2528.3,2528.1,3.2078]
[1725021525591,0.39547,2528.2,2528.1,3.2078]
[1725021527103,0.39547,2528.2,2528.1,3.70230439]
[1725021527287,0.39547,2528.2,2528.1,3.2078]
[1725021527800,0.39547,2528.3,2528.1,4.0977983]
[1725021527994,0.98862,2528.4,2528.1,3.2078]
[1725021527995,0.39547,2528.2,2528.1,3.2078]
[1725021528301,0.39554,2527.8,2527.7,0.00593401]
[1725021528491,0.39554,2527.8,2527.7,0.50049269]
[1725021529099,0.39554,2527.8,2527.7,0.00593401]
[1725021529295,5.34039,2527.8,2527.7,0.00593401]
[1725021529500,1.38439,2527.8,2527.7,0.00593401]
[1725021529900,1.38439,2527.8,2527.7,0.50053727]
[1725021530203,5.34039,2527.8,2527.7,0.50053727]
[1725021530403,16.58182186,2527.8,2527.7,0.50053727]
[1725021530601,0.98899,2527.5,2526.9,3.2078]
[1725021530809,0.39561,2527.4,2527.0,0.89035805]
[1725021531000,4.41913287,2527.4,2527.0,0.49469805]
[1725021531197,0.39562,2527.3,2527.1,0.49469805]
[1725021531505,0.39562,2527.3,2527.2,0.49469805]
[1725021531700,0.00593401,2527.5,2527.2,0.49469805]
[1725021532015,0.00593401,2527.5,2527.3,0.49469805]
[1725021532016,0.40152401,2527.5,2527.3,0.49469805]
[1725021532201,0.3956,2527.4,2527.3,0.49464974]
[1725021532394,0.40153401,2527.5,2527.3,0.49464974]
[1725021532599,0.40151401,2527.5,2527.4,0.49464974]
[1725021533205,0.00593401,2527.5,2527.4,4.84704974]
[1725021534510,0.00593401,2527.5,2527.4,5.83605974]
[1725021535110,0.00593401,2527.5,2527.4,11.83605974]
[1725021535303,0.00593401,2527.5,2527.4,17.37482741]
[1725021535502,0.39548,2528.2,2527.9,0.39551]
[1725021536011,0.3955,2528.1,2527.8,3.60332]
[1725021536206,4.39542204,2528.1,2527.8,3.2078]
[1725021536415,0.39552,2527.9,2527.8,3.2078]
[1725021536912,0.39552,2527.9,2527.8,3.70239878]
[1725021537311,5.34033,2527.9,2527.8,0.49459878]
[1725021538419,16.61594941,2527.9,2527.8,0.49459878]
[1725021538716,0.39559,2527.5,2527.3,4.56]
[1725021539115,0.39556,2527.7,2527.3,4.56]
[1725021539311,0.39556,2527.7,2527.5,0.39558]
[1725021539513,0.98879,2528.0,2527.5,0.39557]
[1725021539812,0.39556,2527.7,2527.6,0.49464088]
[1725021540417,9.48480157,2527.7,2527.6,0.49464088]
[1725021540613,16.47369157,2527.7,2527.6,0.49464088]
[1725021540807,0.39561,2527.3,2527.2,5.53876767]
[1725021541218,0.98904,2527.3,2527.2,0.49467194]
[1725021541409,5.34145,2527.3,2527.2,0.49467194]
[1725021542222,6.33049,2527.3,2527.2,0.49467194]
[1725021542412,4.35241,2527.3,2527.2,0.49467194]
[1725021542711,0.39561,2527.4,2527.2,4.45147194]
[1725021543014,0.39559,2527.5,2527.3,0.49467194]
[1725021543211,0.98875,2528.1,2527.5,0.39558]
[1725021543514,0.39553,2527.9,2527.6,10.98899961]
[1725021543706,4.19651,2528.2,2527.7,0.89021194]
[1725021543707,0.39552,2528.0,2527.7,0.89021194]
[1725021543905,4.19651,2528.2,2527.8,0.89020194]
[1725021544207,4.19651,2528.2,2527.6,10.09876767]
[1725021544208,3.60328,2528.2,2528.0,0.39551]
[1725021544408,3.60328,2528.2,2527.9,0.39551]
[1725021544612,3.60328,2528.2,2527.9,0.89006533]
[1725021544812,0.39539,2528.8,2528.1,3.2078]
[1725021545114,0.39539,2528.8,2528.0,0.49447387]
[1725021545115,3.9559828,2528.1,2528.0,0.49447387]
[1725021545310,3.9559828,2528.1,2528.0,0.89001314]
[1725021545507,3.9559828,2528.1,2528.0,0.49450314]
[1725021545811,0.00593401,2528.3,2528.0,0.89001314]
[1725021546005,3.96191681,2528.3,2528.1,0.49450314]
[1725021546203,3.96191681,2528.3,2528.2,0.49450314]
[1725021546409,0.00593401,2528.3,2528.2,0.49450314]
[1725021546711,0.00593401,2528.3,2528.2,0.88997314]
[1725021547416,0.00593401,2528.3,2528.2,0.39547]
[1725021547925,0.00593401,2528.3,2528.2,0.88993282]
[1725021548111,3.2078,2529.6,2528.2,14.23509516]
[1725021548308,3.9559828,2528.9,2528.6,4.95541]
[1725021548505,3.9559828,2528.9,2528.7,0.88985282]
[1725021548711,3.9559828,2528.9,2528.8,0.49446282]
[1725021549115,4.3513428,2528.9,2528.8,0.49446282]
[1725021549507,3.9559828,2528.9,2528.8,0.49446282]
[1725021549703,4.3513428,2528.9,2528.8,0.49446282]
[1725021550116,3.9559828,2528.9,2528.8,0.49446282]
[1725021550320,3.9559828,2528.9,2528.4,5.15343056]
[1725021550321,3.9559828,2528.9,2528.7,0.39539]
[1725021550614,3.9559828,2528.9,2528.4,4.56]
[1725021550615,3.9559828,2528.6,2528.4,4.56]
[1725021550811,4.3514028,2528.6,2528.4,4.56]
[1725021551006,3.9559828,2528.5,2528.2,3.60327]
[1725021551208,3.9559828,2528.3,2528.2,0.39547]
[1725021551412,3.9559828,2528.5,2528.2,1.48814168]
[1725021551615,3.9559828,2528.5,2528.1,4.56]
[1725021551616,3.9559828,2528.5,2528.3,0.49442962]
[1725021551911,3.9559828,2528.5,2528.4,0.39544]
[1725021552123,0.39541,2528.6,2528.3,0.88987962]
[1725021552417,0.39543,2528.5,2528.4,0.49442962]
[1725021552617,1.4271,2528.9,2528.4,0.49442962]
[1725021552809,3.9559828,2528.6,2528.5,0.88985962]
[1725021553013,3.2078,2529.0,2528.6,0.39541]
[1725021553210,3.9559828,2528.8,2528.7,0.88982962]
[1725021553411,3.9559828,2528.9,2528.7,0.88982962]
[1725021553618,4.3513528,2528.9,2528.7,5.44982962]
[1725021554319,0.39537,2528.9,2528.8,0.49442962]
[1725021554707,4.3513528,2528.9,2528.8,0.49442962]
[1725021554919,3.9559828,2528.9,2528.8,0.88980962]
[1725021555113,4.3513428,2528.9,2528.8,0.49442962]
[1725021555317,3.9559828,2528.9,2528.8,0.88980962]
[1725021555917,4.3513428,2528.9,2528.8,0.88980962]
[1725021556214,0.98836,2529.1,2528.9,0.39536]
[1725021556215,0.39534,2529.1,2528.9,0.39536]
[1725021556420,0.39534,2529.1,2529.0,0.49442962]
[1725021556614,0.39533,2529.2,2529.0,0.88976962]
[1725021556813,3.9559828,2529.1,2529.0,0.88976962]
[1725021557119,0.98818,2529.5,2529.0,0.88976962]
[1725021557120,4.42699255,2529.5,2529.0,1.4875604]
[1725021557320,3.9559828,2529.3,2529.2,0.39532]
[1725021557513,3.9559828,2529.4,2529.3,0.3953]
[1725021557821,0.39523,2529.8,2529.6,0.39525]
[1725021558018,0.39522,2529.8,2529.7,0.49442962]
[1725021558212,4.3512028,2529.8,2529.7,0.49442962]
[1725021558413,0.39532,2529.2,2529.0,0.00593401]
[1725021558726,0.39532,2529.2,2529.1,0.49428288]
[1725021559019,1.38362,2529.2,2529.1,0.49428288]
[1725021559317,2.37201,2529.1,2529.0,0.00593401]
[1725021559512,0.9884,2529.0,2528.4,3.2078]
[1725021559709,3.95004879,2528.5,2528.4,8.16324]
[1725021560120,3.95004879,2528.5,2528.4,8.65761997]
[1725021560325,4.34547879,2528.5,2528.4,8.26217997]
[1725021561025,3.95004879,2528.5,2528.4,8.65761997]
[1725021561518,4.34547879,2528.5,2528.4,8.65761997]
[1725021561717,3.95004879,2528.5,2528.4,8.65761997]
[1725021561916,4.34547879,2528.5,2528.4,8.26217997]
[1725021562118,4.34547879,2528.5,2528.4,3.70217997]
[1725021562426,5.33405879,2528.5,2528.4,0.49437997]
[1725021563023,5.33405879,2528.5,2528.2,0.00593401]
[1725021563024,3.95004879,2528.5,2528.2,0.00593401]
[1725021563334,3.95004879,2528.3,2528.2,0.40140401]
[1725021563628,0.39543,2528.5,2528.2,0.5003447]
[1725021563826,3.95004879,2528.5,2528.3,0.49441069]
[1725021564013,4.34547879,2528.5,2528.4,0.49441496]
[1725021564218,1.38401,2528.5,2528.4,0.49441496]
[1725021564514,3.95004879,2528.5,2528.4,0.49444214]
[1725021564723,3.95004879,2528.5,2528.4,0.88988214]
[1725021565822,0.00593401,2528.7,2528.6,0.39541]
[1725021566032,0.00593401,2528.7,2528.6,0.88985214]
[1725021566320,0.00593401,2528.7,2528.6,6.07473214]
[1725021566520,0.00593401,2528.7,2528.6,6.07462591]
[1725021566723,0.00593401,2528.7,2528.6,16.02902591]
[1725021566917,0.00593401,2528.7,2528.6,15.04048591]
[1725021567619,0.00593401,2528.7,2528.6,9.04048591]
[1725021568029,0.40133401,2528.7,2528.6,4.09754591]
[1725021568233,4.3513828,2528.7,2528.6,4.09754591]
[1725021568419,3.9559828,2528.7,2528.6,4.09754591]
[1725021568722,4.3513828,2528.7,2528.6,4.09754591]
[1725021569524,4.9444828,2528.7,2528.4,4.56]
[1725021569822,4.9444828,2528.7,2528.3,3.2078]
[1725021569823,0.39544,2528.4,2528.3,3.2078]
[1725021570031,3.95004879,2528.4,2528.3,3.60326]
[1725021570327,4.34548879,2528.4,2528.3,3.60326]
[1725021570516,4.34548879,2528.4,2528.3,3.2078]
[1725021570713,3.95004879,2528.4,2528.3,4.09768918]
[1725021570918,4.34548879,2528.4,2528.3,3.70222918]
[1725021571118,5.33409879,2528.4,2528.3,3.70222918]
[1725021571728,6.32270879,2528.4,2528.3,3.70222918]
[1725021572424,6.32270879,2528.4,2528.3,0.49442918]
[1725021572615,4.34548879,2528.4,2528.3,0.49442918]
[1725021572817,4.34548879,2528.4,2528.3,0.88988918]
[1725021573022,3.21373401,2528.7,2528.6,0.39541]
[1725021573226,0.39543,2528.5,2528.3,0.49442918]
[1725021573522,0.39543,2528.5,2528.4,0.88986255]
[1725021573724,0.39542,2528.6,2528.5,0.39541]
[1725021573928,1.38396,2528.6,2528.5,0.49443255]
[1725021574115,4.34546879,2528.6,2528.5,0.49443255]
[1725021574319,5.33400879,2528.6,2528.5,0.49443255]
[1725021574927,6.32254879,2528.6,2528.5,0.49443255]
[1725021575121,0.39546,2528.3,2528.2,7.32073401]
[1725021575322,4.34550879,2528.3,2528.2,7.8151969]
[1725021575533,4.34550879,2528.3,2528.2,8.2106669]
[1725021575722,4.34550879,2528.3,2528.2,7.8151969]
[1725021575920,5.33415879,2528.3,2528.2,7.32073401]
[1725021576220,4.34550879,2528.3,2528.2,7.71620401]
[1725021576420,3.95004879,2528.3,2528.2,12.27620401]
[1725021576626,3.95004879,2528.3,2528.2,12.77067144]
[1725021576821,0.39544,2528.5,2528.4,0.39544]
[1725021577026,4.20225401,2528.7,2528.3,0.98865]
[1725021577027,3.21373401,2528.7,2528.3,0.98865]
[1725021577217,0.39541,2528.6,2528.5,0.39542]
[1725021577436,0.39541,2528.6,2528.5,0.49446743]
[1725021577635,4.34545879,2528.6,2528.5,0.49446743]
[1725021578130,5.33399879,2528.6,2528.5,0.49446743]
[1725021578822,4.34545879,2528.6,2528.5,0.88989743]
[1725021579027,3.95004879,2528.6,2528.5,0.88989743]
[1725021579226,3.95004879,2528.6,2528.5,0.39543]
[1725021579527,3.60913401,2528.7,2528.6,0.39541]
[1725021579726,0.39542,2528.6,2528.5,0.88984494]
[1725021579928,4.34546879,2528.6,2528.5,0.49442494]
[1725021580123,3.95004879,2528.6,2528.5,0.49442494]
[1725021580333,3.95004879,2528.6,2528.5,0.88985494]
[1725021580628,3.21373401,2528.7,2528.6,0.39541]
[1725021580629,0.00593401,2528.7,2528.6,0.39541]
[1725021580827,0.00593401,2528.7,2528.6,15.25274668]
[1725021581035,4.5555,2529.4,2528.6,15.25274668]
[1725021581036,0.39537,2528.9,2528.6,13.86879668]
[1725021581237,4.34541879,2528.9,2528.8,0.39537]
[1725021581425,1.38379,2528.9,2528.8,0.49439668]
[1725021581732,5.33383879,2528.9,2528.8,0.49439668]
[1725021582323,0.98846,2528.8,2528.5,3.2078]
[1725021582624,4.34545879,2528.6,2528.5,3.60322]
[1725021582823,4.34545879,2528.6,2528.5,3.2078]
[1725021583023,0.39546,2528.3,2528.2,7.93280349]
[1725021583218,5.33415879,2528.3,2528.2,0.40580349]
[1725021583426,5.33415879,2528.3,2528.2,0.00593401]
[1725021583623,6.32280879,2528.3,2528.2,0.00593401]
[1725021584022,47.12280879,2528.3,2528.2,0.00593401]
[1725021584222,1.38444,2527.7,2527.6,4.107]
[1725021584430,0.39558,2527.6,2527.4,7.02339]
[1725021584736,3.95004879,2527.5,2527.4,7.02339]
[1725021584925,3.95004879,2527.5,2527.4,8.01791861]
[1725021585121,3.95004879,2527.5,2527.4,7.61768626]
[1725021585325,3.95004879,2527.5,2527.4,8.01791861]
[1725021585528,0.00593401,2527.7,2527.4,7.62232861]
[1725021585731,4.3515328,2527.7,2527.5,0.98986626]
[1725021586026,0.40148401,2527.7,2527.6,0.49457141]
[1725021586435,4.3515328,2527.7,2527.6,0.49457141]
[1725021586728,5.3404228,2527.7,2527.6,0.49457141]
[1725021587230,0.98897,2527.5,2527.2,0.00593401]
[1725021587427,3.95004879,2527.3,2527.2,0.00593401]
[1725021587636,5.33469879,2527.3,2527.2,0.00593401]
[1725021588134,4.34565879,2527.3,2527.2,0.00593401]
[1725021589335,0.39571,2526.7,2526.6,3.2078]
[1725021589641,4.34575879,2526.7,2526.6,3.2078]
[1725021589835,3.95004879,2526.7,2526.2,4.107]
[1725021590033,4.34579879,2526.5,2526.3,1.39157763]
[1725021590235,3.95004879,2526.5,2526.4,0.39576]
[1725021590533,3.95004879,2526.5,2526.4,1.39148292]
[1725021590837,0.39576,2526.4,2526.3,0.39577]
[1725021591038,0.39576,2526.4,2526.3,0.99574929]
[1725021591339,0.98929,2526.7,2526.2,4.50278]
[1725021591340,0.98929,2526.7,2526.2,4.107]
[1725021591526,4.34581879,2526.3,2526.2,5.10287092]
[1725021591723,4.34581879,2526.3,2526.1,8.16952401]
[1725021592029,3.95004879,2526.2,2526.1,8.16952401]
[1725021592229,4.34583879,2526.2,2526.1,8.16953401]
[1725021592632,4.34583879,2526.2,2526.1,7.77373401]
[1725021592831,3.95004879,2526.2,2526.1,8.16953401]
[1725021594240,0.00593401,2526.4,2526.3,0.39577]
[1725021595739,3.9559828,2526.4,2526.2,0.39578]
[1725021595935,3.95004879,2526.3,2526.2,0.39578]
[1725021596133,0.39579,2526.2,2526.1,7.77373401]
[1725021596334,4.34583879,2526.2,2526.1,3.21373401]
[1725021596547,4.34583879,2526.2,2526.1,3.60953401]
[1725021596548,3.95004879,2526.2,2526.1,3.60953401]
[1725021596836,0.00593401,2526.4,2526.3,0.39577]
[1725021597034,3.9559828,2526.4,2526.3,0.39577]
[1725021598043,4.3517428,2526.4,2526.3,0.39577]
[1725021598244,0.39577,2526.3,2526.2,0.39578]
[1725021598434,0.40170401,2526.4,2526.2,0.39578]
[1725021598633,4.34581879,2526.3,2526.2,0.39578]
[1725021598833,3.95004879,2526.3,2526.2,0.39578]
[1725021599035,4.34581879,2526.3,2526.2,0.39578]
[1725021599230,4.34581879,2526.3,2526.1,7.77373401]
[1725021599448,3.95004879,2526.2,2526.1,8.16953401]
[1725021599744,3.9559828,2526.4,2526.3,0.39577]
[1725021599947,4.3517428,2526.4,2526.3,0.39577]
[1725021600143,4.3517428,2526.4,2526.1,7.77373401]
[1725021600440,0.39577,2526.3,2526.2,0.39578]
[1725021600637,4.34583879,2526.2,2526.1,3.21373401]
[1725021601039,5.33531879,2526.2,2526.1,0.00593401]
[1725021602256,6.32479879,2526.2,2526.1,0.00593401]
[1725021603343,12.32479879,2526.2,2526.1,0.00593401]
[1725021603542,0.39588,2525.6,2525.5,22.63217218]
[1725021603742,4.34592879,2525.6,2525.5,0.59517218]
[1725021603942,5.33563879,2525.6,2525.5,0.59517218]
[1725021604244,4.34592879,2525.6,2525.5,0.59517218]
[1725021604451,3.95004879,2525.6,2525.5,0.99107218]
[1725021604644,3.2078,2526.2,2526.0,0.39581]
[1725021604957,0.39582,2526.0,2525.9,0.39582]
[1725021605156,3.95004879,2526.0,2525.9,0.39582]
[1725021605360,3.60359,2526.2,2525.6,3.2078]
[1725021605361,0.39584,2525.9,2525.6,3.2078]
[1725021605543,3.95004879,2525.7,2525.6,3.2078]
[1725021605752,3.95004879,2525.7,2525.4,4.107]
[1725021606056,4.93979879,2525.5,2525.3,0.00593401]
[1725021606244,5.33574879,2525.4,2525.3,0.00593401]
[1725021606445,0.39604,2524.6,2524.3,1.4063]
[1725021606655,0.98987,2525.2,2524.2,3.60389]
[1725021606656,3.95004879,2524.4,2524.2,3.60389]
[1725021607054,3.95004879,2524.4,2524.3,0.39609]
[1725021607257,8.8068,2525.2,2524.4,0.99018]
[1725021607463,3.95004879,2525.0,2524.8,0.39599]
[1725021607751,7.7678,2524.9,2523.9,3.2078]
[1725021607955,3.94411478,2524.0,2523.9,3.2078]
[1725021608160,3.94411478,2524.0,2523.6,1.4379]
[1725021608363,3.94411478,2524.0,2523.9,0.39615]
[1725021608650,0.39609,2524.3,2524.0,0.39613]
[1725021608857,3.94411478,2524.0,2523.9,0.00593401]
[1725021609355,4.34024478,2524.0,2523.9,0.00593401]
[1725021609746,3.94411478,2524.0,2523.9,0.00593401]
[1725021609952,3.2078,2524.4,2524.0,0.39613]
[1725021610157,3.94411478,2524.1,2524.0,0.39613]
[1725021610855,3.2078,2524.4,2524.0,0.39613]
[1725021611153,5.06152,2524.8,2524.3,0.39607]
[1725021611350,3.94411478,2524.5,2524.3,0.39607]
[1725021611553,3.94411478,2524.4,2524.0,5.02392]
[1725021611758,3.94411478,2524.1,2524.0,3.2078]
[1725021612269,3.94411478,2524.1,2524.0,3.60393]
[1725021612962,4.6655,2524.8,2524.0,13.1694]
[1725021613256,0.00593401,2525.1,2524.7,3.2078]
[1725021613456,3.94411478,2525.0,2524.7,3.2078]
[1725021613652,3.94411478,2524.8,2524.6,0.39603]
[1725021613954,0.39598,2525.0,2524.4,4.50307]
[1725021613955,3.94411478,2524.5,2524.4,4.50307]
[1725021614260,3.94411478,2524.7,2524.2,4.19804]
[1725021614559,3.94411478,2524.7,2524.6,3.60384]
[1725021615447,0.00593401,2525.1,2525.0,0.39598]
[1725021615749,3.95004879,2525.1,2525.0,0.39598]
[1725021616257,0.00593401,2525.1,2525.0,10.35598]
[1725021616558,0.00593401,2525.1,2525.0,0.39598]
[1725021617258,0.00593401,2525.1,2524.9,0.39598]
[1725021617454,0.00593401,2525.1,2525.0,0.39598]
[1725021618967,3.95004879,2525.1,2525.0,0.39598]
[1725021619176,3.95004879,2525.1,2524.9,3.2078]
[1725021619461,3.94411478,2525.0,2524.9,0.39599]
[1725021619655,4.34009478,2525.0,2524.6,3.2078]
[1725021619853,3.94411478,2524.8,2524.6,3.60383]
[1725021620053,4.34013478,2524.7,2524.4,0.39606]
[1725021620269,4.34017478,2524.5,2524.2,7.71089]
[1725021620563,4.34017478,2524.5,2524.2,4.50309]
[1725021620564,3.94411478,2524.3,2524.2,4.50309]
[1725021620960,4.34021478,2524.3,2524.0,0.39613]
[1725021621168,3.94411478,2524.1,2523.9,0.40207401]
[1725021621570,3.94411478,2524.0,2523.9,0.00593401]
[1725021621761,3.94411478,2524.0,2523.9,0.40208401]
[1725021621962,3.2078,2524.6,2524.2,0.3961]
[1725021621963,3.60385,2524.6,2524.2,0.3961]
[1725021622155,3.94411478,2524.3,2524.2,0.3961]
[1725021622460,3.94411478,2524.3,2524.2,3.6039]
[1725021622663,1.3527,2524.8,2524.7,0.39602]
[1725021622865,3.94411478,2524.6,2524.5,3.60385]
[1725021623057,5.487,2525.0,2524.6,0.39604]
[1725021623058,3.94411478,2524.7,2524.6,0.39604]
[1725021623260,3.94411478,2524.6,2524.5,3.60385]
[1725021623960,0.00593401,2525.1,2524.6,0.9901]
[1725021624176,3.94411478,2524.8,2524.7,4.56]
[1725021624355,3.94411478,2524.8,2524.7,4.95602]
[1725021624855,0.00593401,2525.1,2525.0,0.39598]
[1725021626176,3.95004879,2525.1,2524.9,0.39599]
[1725021626360,4.34010478,2525.0,2524.7,4.56]
[1725021626560,3.94411478,2524.8,2524.6,3.2078]
[1725021626756,3.94411478,2524.7,2524.6,3.2078]
[1725021627064,2.8553,2525.0,2524.9,0.39599]
[1725021627276,0.00593401,2525.1,2524.7,5.55005]
[1725021627467,0.00593401,2525.1,2525.0,0.39598]
[1725021627651,0.00593401,2525.1,2524.9,3.2078]
[1725021627858,0.00593401,2525.1,2524.7,0.39601]
[1725021627859,4.34009478,2525.0,2524.7,0.39601]
[1725021628056,3.94411478,2524.8,2524.7,0.39601]
[1725021628767,3.94411478,2524.8,2524.7,4.95601]
[1725021629761,3.94411478,2524.8,2524.6,0.39603]
[1725021629966,3.94411478,2524.6,2524.3,11.027]
[1725021630161,0.39603,2524.7,2524.3,11.027]
[1725021630363,3.94411478,2524.4,2524.3,11.42309]
[1725021631059,0.396,2524.9,2524.6,0.39603]
[1725021631368,0.39599,2524.9,2524.6,0.39603]
[1725021631569,3.94411478,2524.7,2524.6,0.39603]
[1725021633471,1.3799,2525.0,2524.9,0.39599]
[1725021634074,5.32401478,2525.0,2524.9,0.39599]
[1725021635964,5.32401478,2525.0,2524.9,0.79741472]
[1725021636369,5.32401478,2525.0,2524.9,0.79742318]
[1725021636572,5.32401478,2525.0,2524.9,0.39599]
[1725021636963,5.32401478,2525.0,2524.9,0.79744422]
[1725021637165,5.71999478,2525.0,2524.7,0.59593013]
[1725021637372,3.94411478,2524.8,2524.7,0.59590224]
[1725021637567,4.34013478,2524.8,2524.5,4.107]
[1725021637763,0.39602,2524.7,2524.6,0.40148421]
[1725021638169,4.34013478,2524.7,2524.6,0.40148421]
[1725021638464,3.94411478,2524.7,2524.6,1.39348845]
[1725021638769,1.3799,2525.0,2524.6,1.39348845]
[1725021638981,3.94411478,2524.8,2524.7,1.39339775]